bitfinex/quotes_BTCUSD_20250610
["timestamp","ask_amount","ask_price","bid_price","bid_amount"]
[1749584255659,0.68806028,110290.0,110280.0,0.00048372]
[1749584255910,0.49765334,110290.0,110280.0,0.00048372]
[1749584256126,0.39053334,110290.0,110280.0,0.00048372]
[1749584256382,0.34906634,110290.0,110280.0,0.00048372]
[1749584256611,0.36719952,110290.0,110280.0,0.00048372]
[1749584256794,0.34,110290.0,110280.0,0.00048372]
[1749584257076,0.34906642,110290.0,110280.0,0.00048372]
[1749584257284,0.38162642,110290.0,110280.0,0.00048372]
[1749584257725,0.37256,110290.0,110280.0,0.06468372]
[1749584257963,0.399757,110290.0,110280.0,0.07089834]
[1749584258723,0.367197,110290.0,110280.0,0.16224894]
[1749584258954,0.05484327,110300.0,110290.0,0.2892]
[1749584259200,0.05484327,110300.0,110290.0,0.3805534]
[1749584259408,0.05484327,110300.0,110290.0,0.38676109]
[1749584259851,0.39484327,110300.0,110290.0,0.38676109]
[1749584260058,0.39484327,110300.0,110290.0,0.3805534]
[1749584260269,0.39484327,110300.0,110290.0,0.38675659]
[1749584260501,0.39484327,110300.0,110290.0,0.38675652]
[1749584260730,0.39484327,110300.0,110290.0,0.3867565]
[1749584260939,0.39484327,110300.0,110290.0,0.3867566]
[1749584261577,0.39484327,110300.0,110290.0,0.38675617]
[1749584262000,0.39484327,110300.0,110290.0,0.38675494]
[1749584262208,0.39484327,110300.0,110290.0,0.3805534]
[1749584262838,0.39484327,110300.0,110290.0,0.38675495]
[1749584263703,0.39484327,110300.0,110290.0,0.38675494]
[1749584263919,0.39484327,110300.0,110290.0,0.38675495]
[1749584264144,0.39484327,110300.0,110290.0,0.38675494]
[1749584265235,0.39484327,110300.0,110290.0,0.3805534]
[1749584265447,0.39484327,110300.0,110290.0,0.38675047]
[1749584265667,0.39484327,110300.0,110290.0,0.38675038]
[1749584265964,0.39484327,110300.0,110290.0,0.38675033]
[1749584266183,0.38205345,110300.0,110290.0,0.3805534]
[1749584266399,0.04205345,110300.0,110290.0,0.41175006]
[1749584266616,0.04205345,110300.0,110290.0,0.85215708]
[1749584266835,0.04205345,110300.0,110290.0,0.66175006]
[1749584267050,0.04205345,110300.0,110290.0,0.6555534]
[1749584267276,0.04205345,110300.0,110290.0,0.66174716]
[1749584267503,0.04205345,110300.0,110290.0,0.6575534]
[1749584267714,0.04205345,110300.0,110290.0,0.6637468]
[1749584268150,0.04205345,110300.0,110290.0,0.3835534]
[1749584268396,0.04205345,110300.0,110290.0,0.36474803]
[1749584268612,0.04205345,110300.0,110290.0,0.3565534]
[1749584268827,0.04205345,110300.0,110290.0,0.3595534]
[1749584269473,0.38205345,110300.0,110290.0,0.3595534]
[1749584269698,0.3965943,110300.0,110290.0,0.3236534]
[1749584269912,0.3965943,110300.0,110290.0,0.00819674]
[1749584269913,0.3940943,110300.0,110290.0,0.00819674]
[1749584270125,0.3940943,110300.0,110290.0,0.01019722]
[1749584270338,0.3940943,110300.0,110290.0,0.004]
[1749584270768,0.3940943,110300.0,110290.0,0.002]
[1749584271012,0.3940943,110300.0,110290.0,0.003]
[1749584271237,0.3940943,110300.0,110290.0,0.0092075]
[1749584271687,0.4268143,110300.0,110290.0,0.003]
[1749584271927,0.4268143,110300.0,110290.0,0.00920805]
[1749584272176,0.4268143,110300.0,110290.0,0.003]
[1749584272390,0.4268143,110300.0,110290.0,0.00920831]
[1749584272638,0.4268143,110300.0,110290.0,0.003]
[1749584272879,0.4268143,110300.0,110290.0,0.00920834]
[1749584272880,0.43587982,110300.0,110290.0,0.00920834]
[1749584273113,0.79880974,110300.0,110290.0,0.003]
[1749584273335,0.62655226,110300.0,110290.0,0.003]
[1749584273632,0.80787592,110300.0,110290.0,0.003]
[1749584273870,0.80787592,110300.0,110290.0,0.002]
[1749584274640,0.01454085,110290.0,110280.0,0.03169475]
[1749584274944,0.51971345,110300.0,110280.0,0.15374815]
[1749584275147,0.43946845,110300.0,110280.0,0.18614815]
[1749584275359,0.43946845,110300.0,110280.0,0.18614688]
[1749584275619,0.43946845,110300.0,110280.0,0.18617058]
[1749584275870,0.43946845,110300.0,110280.0,0.17993712]
[1749584276076,0.43946845,110300.0,110280.0,0.03171752]
[1749584276077,0.01454085,110290.0,110280.0,0.03171752]
[1749584276499,0.02360711,110290.0,110280.0,0.03171752]
[1749584276716,0.01454085,110290.0,110280.0,0.02548372]
[1749584276929,0.01454085,110290.0,110280.0,0.03171794]
[1749584277145,0.02360711,110290.0,110280.0,0.03171794]
[1749584277358,0.01454085,110290.0,110280.0,0.03171793]
[1749584277571,0.01454085,110290.0,110280.0,0.0317189]
[1749584277755,0.01454085,110290.0,110280.0,0.02548372]
[1749584277999,0.02360719,110290.0,110280.0,0.03171892]
[1749584278222,0.01454085,110290.0,110280.0,0.03171892]
[1749584278442,0.02360711,110290.0,110280.0,0.03171905]
[1749584278653,0.02360711,110290.0,110280.0,0.02548372]
[1749584278837,0.02360727,110290.0,110280.0,0.02548372]
[1749584279047,0.02360727,110290.0,110280.0,0.03171904]
[1749584279250,0.02360719,110290.0,110280.0,0.03171911]
[1749584279455,0.01454085,110290.0,110280.0,0.03171918]
[1749584279669,0.04173885,110290.0,110280.0,0.02548372]
[1749584279889,0.04173885,110290.0,110280.0,0.0317195]
[1749584280090,0.05080511,110290.0,110280.0,0.0317195]
[1749584280337,0.04173885,110290.0,110280.0,0.00048372]
[1749584280562,0.34906725,110280.0,110260.0,0.10068992]
[1749584280780,0.01454085,110270.0,110260.0,0.03767376]
[1749584281934,0.01454085,110270.0,110260.0,0.06997376]
[1749584282148,0.02360884,110270.0,110260.0,0.03967376]
[1749584282379,0.45131394,110270.0,110260.0,0.03767376]
[1749584282600,0.54017789,110270.0,110230.0,0.44299058]
[1749584282820,0.03276,110260.0,110240.0,0.00048424]
[1749584283042,0.39082045,110250.0,110240.0,0.00048424]
[1749584283257,0.35454085,110250.0,110240.0,0.00048424]
[1749584283478,0.39077075,110250.0,110240.0,0.00048424]
[1749584283698,0.40890812,110250.0,110240.0,0.00048424]
[1749584283929,0.44166812,110250.0,110240.0,0.00048424]
[1749584284141,0.40890812,110250.0,110240.0,0.00048424]
[1749584284352,0.39992027,110250.0,110240.0,0.06378424]
[1749584284613,0.36716027,110250.0,110240.0,0.06378424]
[1749584285135,0.34,110250.0,110240.0,0.18013764]
[1749584286526,0.10265345,110300.0,110260.0,0.0645]
[1749584286757,0.37276,110290.0,110270.0,0.0645]
[1749584286991,0.059959,110290.0,110270.0,0.0645]
[1749584287223,0.01454085,110280.0,110270.0,0.0645]
[1749584287452,0.06902526,110290.0,110270.0,0.0645]
[1749584287676,0.01454085,110280.0,110270.0,0.0645]
[1749584289988,0.0539699,110290.0,110280.0,0.0332]
[1749584290254,0.0595309,110290.0,110280.0,0.0582]
[1749584290959,0.07407175,110290.0,110280.0,0.0582]
[1749584291198,0.09950945,110300.0,110280.0,0.09118424]
[1749584291459,0.06674945,110300.0,110280.0,0.09118424]
[1749584291672,0.07231345,110300.0,110280.0,0.18253764]
[1749584291939,0.41231345,110300.0,110280.0,0.18253764]
[1749584294176,0.44014703,110300.0,110280.0,0.18253764]
[1749584294475,0.44014703,110300.0,110280.0,0.00048424]
[1749584294476,0.01454085,110290.0,110280.0,0.00048424]
[1749584295003,0.04173885,110290.0,110280.0,0.00048424]
[1749584295427,0.06893837,110290.0,110280.0,0.00048424]
[1749584295637,0.06893829,110290.0,110280.0,0.00048424]
[1749584296085,0.06893837,110290.0,110280.0,0.00048424]
[1749584296285,0.07800505,110290.0,110280.0,0.00048424]
[1749584296775,0.05987162,110290.0,110280.0,0.00048424]
[1749584297205,0.06893829,110290.0,110280.0,0.00048424]
[1749584297429,0.05987162,110290.0,110280.0,0.00048424]
[1749584297651,0.05080511,110290.0,110280.0,0.00048424]
[1749584297881,0.40893804,110290.0,110280.0,0.00048424]
[1749584298104,0.41800479,110290.0,110280.0,0.00048424]
[1749584298311,0.39987145,110290.0,110280.0,0.00048424]
[1749584298536,0.53072519,110290.0,110280.0,0.0306]
[1749584298781,0.52165885,110290.0,110280.0,0.0306]
[1749584299202,0.53072527,110290.0,110280.0,0.0306]
[1749584299425,0.53072519,110290.0,110270.0,0.0317]
[1749584300315,0.3998717,110290.0,110270.0,0.0317]
[1749584300524,0.12138085,110280.0,110270.0,0.0317]
[1749584303414,0.48857885,110290.0,110280.0,0.0329]
[1749584303627,0.367198,110290.0,110280.0,0.1242534]
[1749584303843,0.507358,110290.0,110280.0,0.0329]
[1749584304061,0.41465885,110290.0,110280.0,0.0329]
[1749584304310,0.41465885,110290.0,110280.0,0.0657]
[1749584304311,0.04173885,110290.0,110280.0,0.0657]
[1749584304554,0.06738703,110300.0,110290.0,0.0329]
[1749584304766,0.10912288,110300.0,110290.0,0.0657]
[1749584304996,5.44912288,110300.0,110290.0,0.0657]
[1749584305214,5.06674845,110300.0,110290.0,0.1570534]
[1749584305683,5.40674845,110300.0,110290.0,0.1570534]
[1749584305898,5.37955345,110300.0,110290.0,0.1242534]
[1749584307674,0.34,110290.0,110280.0,0.0329]
[1749584307901,0.34,110290.0,110280.0,0.1242534]
[1749584308115,0.34,110290.0,110280.0,0.0913534]
[1749584308340,0.34,110290.0,110270.0,0.0657]
[1749584308553,0.34,110290.0,110270.0,0.1242534]
[1749584308990,0.3715,110290.0,110270.0,0.1242534]
[1749584309447,0.04216,110280.0,110270.0,0.1242534]
[1749584309664,0.05670085,110280.0,110270.0,0.0329]
[1749584310796,0.05670085,110280.0,110270.0,0.0349]
[1749584311232,0.05620085,110280.0,110270.0,0.0329]
[1749584311449,0.17704085,110280.0,110270.0,0.0329]
[1749584312108,0.34,110270.0,110260.0,0.03278463]
[1749584312322,0.34,110270.0,110260.0,0.12413803]
[1749584312755,5.06704159,110300.0,110280.0,0.0573]
[1749584312971,0.34,110290.0,110280.0,0.1486534]
[1749584313214,0.503,110290.0,110280.0,0.1486534]
[1749584313435,0.503,110290.0,110270.0,0.0323]
[1749584313436,0.52660711,110290.0,110270.0,0.0323]
[1749584313654,0.54864085,110290.0,110270.0,0.0323]
[1749584314123,0.01454085,110280.0,110260.0,0.03278463]
[1749584314331,0.01454085,110280.0,110260.0,0.12413803]
[1749584316154,0.01454085,110280.0,110260.0,0.12613803]
[1749584316900,0.12068,110270.0,110260.0,0.12713803]
[1749584317783,0.12068,110270.0,110260.0,0.12613803]
[1749584318003,0.12068,110270.0,110260.0,0.12713803]
[1749584318896,0.12068,110270.0,110260.0,0.12513803]
[1749584319127,0.12068,110270.0,110260.0,0.13336764]
[1749584319405,0.12068,110270.0,110260.0,0.10106764]
[1749584319406,0.13522085,110270.0,110260.0,0.10106764]
[1749584319612,0.13522085,110270.0,110260.0,0.1176798]
[1749584319825,0.13522085,110270.0,110260.0,0.09483803]
[1749584320041,0.13522085,110270.0,110260.0,0.11767992]
[1749584320252,0.13522085,110270.0,110260.0,0.10106764]
[1749584320466,0.13522085,110270.0,110260.0,0.09183803]
[1749584320697,0.13522085,110270.0,110260.0,0.09806764]
[1749584320907,0.13522085,110270.0,110260.0,0.12463803]
[1749584321119,0.01454085,110270.0,110260.0,0.13086764]
[1749584321334,0.17634085,110270.0,110260.0,0.14125025]
[1749584321541,0.17634085,110270.0,110260.0,0.14747996]
[1749584321752,0.17634085,110270.0,110260.0,0.14125046]
[1749584322005,0.51634085,110270.0,110260.0,0.12463803]
[1749584322219,0.51634085,110270.0,110260.0,0.14124824]
[1749584322451,0.51618085,110270.0,110260.0,0.14747821]
[1749584322674,0.51618085,110270.0,110260.0,0.14125003]
[1749584322885,0.51618085,110270.0,110260.0,0.14748016]
[1749584323093,0.51618085,110270.0,110260.0,0.12463803]
[1749584323362,0.51618085,110270.0,110260.0,0.14748189]
[1749584323594,0.51618085,110270.0,110260.0,0.13086817]
[1749584323811,0.51618085,110270.0,110260.0,0.14748188]
[1749584324030,0.51618085,110270.0,110260.0,0.13086818]
[1749584324265,0.51618085,110270.0,110260.0,0.14748191]
[1749584324493,0.51618085,110270.0,110260.0,0.1412518]
[1749584324729,0.51618085,110270.0,110260.0,0.14125177]
[1749584324964,0.51618085,110270.0,110260.0,0.12463803]
[1749584325210,0.51618085,110270.0,110260.0,0.14748346]
[1749584325907,0.51618085,110270.0,110260.0,0.14747878]
[1749584326116,0.51618085,110270.0,110260.0,0.13086392]
[1749584326347,0.51618085,110270.0,110260.0,0.14124041]
[1749584326574,0.47354085,110270.0,110260.0,0.15753803]
[1749584326793,0.47354085,110270.0,110260.0,0.18036536]
[1749584327013,0.47354085,110270.0,110260.0,0.14746536]
[1749584327261,0.47354085,110270.0,110260.0,0.14123982]
[1749584327485,0.47354085,110270.0,110260.0,0.14744419]
[1749584327707,0.47354085,110270.0,110260.0,0.14121836]
[1749584327915,0.47354085,110270.0,110260.0,0.14743602]
[1749584328779,0.50454085,110270.0,110260.0,0.01708046]
[1749584328989,0.50454085,110270.0,110260.0,0.0233039]
[1749584329209,0.50454085,110270.0,110260.0,0.00670847]
[1749584329416,0.50454085,110270.0,110260.0,0.02330572]
[1749584329663,0.50454085,110270.0,110260.0,0.02330571]
[1749584329871,0.50454085,110270.0,110260.0,0.00670856]
[1749584330088,0.50454085,110270.0,110260.0,0.01708186]
[1749584330296,0.50454085,110270.0,110260.0,0.02330582]
[1749584330710,0.50454085,110270.0,110260.0,0.02330581]
[1749584330955,0.50454085,110270.0,110260.0,0.00670858]
[1749584331158,0.50454085,110270.0,110260.0,0.0067082]
[1749584331377,0.50454085,110270.0,110260.0,0.01708078]
[1749584331587,0.50454085,110270.0,110260.0,0.02330455]
[1749584331806,0.50454085,110270.0,110260.0,0.02330465]
[1749584332024,0.01454085,110240.0,110220.0,0.0323]
[1749584332301,0.04464085,110240.0,110230.0,0.025]
[1749584332551,0.190439,110240.0,110230.0,0.025]
[1749584332778,0.16288085,110240.0,110230.0,0.025]
[1749584333242,0.16288085,110240.0,110230.0,0.04161182]
[1749584333473,0.16288085,110240.0,110230.0,0.025]
[1749584333698,0.16288085,110240.0,110230.0,0.00754965]
[1749584333938,0.16288085,110240.0,110220.0,0.12413851]
[1749584333939,0.17195122,110240.0,110220.0,0.12413851]
[1749584334158,0.16288085,110240.0,110220.0,0.12413851]
[1749584334389,0.17195122,110240.0,110220.0,0.12413851]
[1749584334608,0.17467022,110240.0,110220.0,0.12413851]
[1749584335976,0.13250085,110230.0,110220.0,0.12413851]
[1749584336483,0.13246085,110230.0,110220.0,0.12413851]
[1749584339099,0.03893752,110240.0,110220.0,0.15713851]
[1749584339324,0.05347837,110240.0,110230.0,0.1570534]
[1749584339543,0.01454085,110240.0,110230.0,0.1570534]
[1749584340637,0.04155892,110240.0,110230.0,0.1570534]
[1749584341292,0.04155892,110240.0,110230.0,0.1230534]
[1749584341503,0.04155892,110240.0,110230.0,0.1533534]
[1749584343071,0.02701807,110240.0,110230.0,0.1533534]
[1749584343290,0.02701807,110240.0,110230.0,0.2033534]
[1749584343505,0.057502,110280.0,110260.0,0.0317]
[1749584343729,0.1172,110280.0,110270.0,0.0317]
[1749584343976,0.1172,110280.0,110270.0,0.03792478]
[1749584344202,0.20770182,110280.0,110270.0,0.00622526]
[1749584344421,0.35454085,110270.0,110250.0,0.0567]
[1749584344647,0.34,110270.0,110260.0,0.0317]
[1749584344883,0.36631107,110270.0,110260.0,0.0317]
[1749584345354,0.35177022,110270.0,110260.0,0.1559534]
[1749584345588,0.01177022,110270.0,110260.0,0.1559534]
[1749584345816,0.01177022,110270.0,110260.0,0.17255401]
[1749584346049,0.01454085,110270.0,110260.0,0.17255358]
[1749584346278,0.01454085,110270.0,110260.0,0.17255353]
[1749584346723,0.01454085,110270.0,110260.0,0.17255348]
[1749584346949,0.01454085,110270.0,110260.0,0.17255361]
[1749584347172,0.02670132,110270.0,110260.0,0.17255376]
[1749584347403,0.02670132,110270.0,110260.0,0.17255146]
[1749584347625,0.01216047,110270.0,110260.0,0.17255228]
[1749584347917,0.01216047,110270.0,110260.0,0.17255158]
[1749584348152,0.01454085,110280.0,110270.0,0.0572]
[1749584348609,0.01454085,110280.0,110270.0,0.04159787]
[1749584348844,0.01454085,110280.0,110270.0,0.04159873]
[1749584349301,0.01454085,110280.0,110270.0,0.04159858]
[1749584349532,0.01454085,110280.0,110270.0,0.04158437]
[1749584349981,0.01454085,110280.0,110270.0,0.04160168]
[1749584350207,0.01454085,110280.0,110270.0,0.10250233]
[1749584350208,0.0257838,110280.0,110270.0,0.10250233]
[1749584350451,0.0257838,110280.0,110270.0,0.19385316]
[1749584350658,0.0257838,110280.0,110270.0,0.1772534]
[1749584350862,0.0257838,110280.0,110270.0,0.19385281]
[1749584351068,0.0257838,110280.0,110270.0,0.1772534]
[1749584352000,0.0257838,110280.0,110270.0,0.1464534]
[1749584352495,0.0257838,110280.0,110270.0,0.16305255]
[1749584352727,0.0257838,110280.0,110270.0,0.19385215]
[1749584352944,0.0257838,110280.0,110270.0,0.1772534]
[1749584353163,0.0257838,110280.0,110270.0,0.19385087]
[1749584353377,0.0257838,110280.0,110270.0,0.1772534]
[1749584353796,0.0257838,110280.0,110270.0,0.19385061]
[1749584354007,0.0257838,110280.0,110270.0,0.1772534]
[1749584354451,0.0257838,110280.0,110270.0,0.16305071]
[1749584354670,0.0257838,110280.0,110270.0,0.1464534]
[1749584354890,0.0257838,110280.0,110270.0,0.16305076]
[1749584355322,0.0257838,110280.0,110270.0,0.16304899]
[1749584355655,0.0257838,110280.0,110270.0,0.1630488]
[1749584355747,5.10664159,110300.0,110290.0,0.025]
[1749584355962,5.12118244,110300.0,110290.0,0.3495]
[1749584356182,5.46118244,110300.0,110290.0,0.36608763]
[1749584356397,5.46118244,110300.0,110290.0,0.36608791]
[1749584356607,5.46118244,110300.0,110290.0,0.36608763]
[1749584356845,5.46118244,110300.0,110290.0,0.3495]
[1749584357061,5.47260304,110300.0,110290.0,0.3168]
[1749584357294,5.47260304,110300.0,110290.0,0.33338832]
[1749584357506,5.47260304,110300.0,110290.0,0.33338828]
[1749584357726,5.47260304,110300.0,110290.0,0.3495]
[1749584361435,5.43300304,110300.0,110290.0,0.3495]
[1749584361860,5.43300304,110300.0,110290.0,0.4718534]
[1749584363717,5.43300304,110300.0,110290.0,0.4408534]
[1749584364356,5.43300304,110300.0,110280.0,0.0327]
[1749584364357,0.35454085,110290.0,110280.0,0.0327]
[1749584364617,0.35454085,110290.0,110270.0,0.0327]
[1749584364830,0.46942085,110290.0,110270.0,0.1240534]
[1749584365037,0.50132085,110290.0,110270.0,0.1240534]
[1749584366159,0.51038711,110290.0,110260.0,0.06760202]
[1749584366374,0.51038711,110290.0,110260.0,0.15895542]
[1749584366580,0.51038711,110290.0,110260.0,0.19035542]
[1749584367013,0.50132085,110290.0,110260.0,0.19035542]
[1749584367243,0.50132085,110290.0,110270.0,0.0308]
[1749584369950,0.51038727,110290.0,110270.0,0.0308]
[1749584370182,0.04624085,110280.0,110270.0,0.2918]
[1749584371487,0.01454085,110280.0,110270.0,0.2918]
[1749584371928,0.46882085,110280.0,110270.0,0.323]
[1749584372139,0.35454085,110280.0,110270.0,0.323]
[1749584373236,0.35454085,110280.0,110270.0,0.2918]
[1749584375870,0.35454085,110280.0,110270.0,0.3247]
[1749584376080,0.46846085,110280.0,110270.0,0.2918]
[1749584377045,0.46846085,110280.0,110270.0,0.30844564]
[1749584377325,0.49846085,110280.0,110270.0,0.01664561]
[1749584377527,0.37,110270.0,110260.0,0.32860202]
[1749584377670,0.37906799,110270.0,110260.0,0.32860202]
[1749584378330,0.37,110270.0,110260.0,0.32860202]
[1749584378649,0.48356,110270.0,110260.0,0.32860202]
[1749584382088,0.4926279,110270.0,110260.0,0.32860202]
[1749584382290,0.48356,110270.0,110260.0,0.34521476]
[1749584383341,0.060004,110280.0,110260.0,0.37611476]
[1749584383546,0.027204,110280.0,110270.0,0.0309]
[1749584383747,0.027204,110280.0,110270.0,0.04751274]
[1749584383993,0.04174485,110280.0,110270.0,0.0614]
[1749584384168,0.01454085,110280.0,110270.0,0.07802184]
[1749584384575,0.01454085,110280.0,110270.0,0.0614]
[1749584384832,0.40547559,110280.0,110270.0,0.01662158]
[1749584385031,0.01454085,110250.0,110240.0,0.0309]
[1749584385246,0.35454085,110250.0,110240.0,0.04753438]
[1749584385444,0.50446085,110260.0,110250.0,0.0326]
[1749584385571,0.50446085,110260.0,110250.0,0.04923285]
[1749584385786,0.50446085,110260.0,110250.0,0.04923253]
[1749584386182,0.50446085,110260.0,110250.0,0.04923261]
[1749584386386,0.46722916,110260.0,110250.0,0.04923261]
[1749584386794,0.35458916,110260.0,110250.0,0.04923261]
[1749584387003,0.46718916,110260.0,110250.0,0.04923261]
[1749584387443,0.46718916,110260.0,110250.0,0.04923523]
[1749584387894,0.46718916,110260.0,110250.0,0.04923522]
[1749584388666,0.46718916,110260.0,110250.0,0.0326]
[1749584389101,0.46718916,110260.0,110250.0,0.0492352]
[1749584389269,0.46718916,110260.0,110250.0,0.04923514]
[1749584389476,0.46718916,110260.0,110250.0,0.04923517]
[1749584389932,0.46718916,110260.0,110250.0,0.04923522]
[1749584390513,0.46694916,110260.0,110250.0,0.07423522]
[1749584390670,0.46694916,110260.0,110250.0,0.0576]
[1749584390869,0.46694916,110260.0,110250.0,0.36603711]
[1749584391183,0.46694916,110260.0,110250.0,0.3494]
[1749584391412,0.46694916,110260.0,110250.0,0.36604068]
[1749584391695,0.46694916,110260.0,110250.0,0.36604125]
[1749584391878,0.35458916,110260.0,110250.0,0.36604125]
[1749584392084,0.46674916,110260.0,110250.0,0.36604125]
[1749584392239,4.831e-05,110260.0,110250.0,0.19809465]
[1749584392821,4.831e-05,110260.0,110250.0,0.19809079]
[1749584393026,4.831e-05,110260.0,110250.0,0.1814534]
[1749584393231,4.831e-05,110260.0,110250.0,0.19809073]
[1749584394272,4.831e-05,110260.0,110250.0,0.19809195]
[1749584394471,4.831e-05,110260.0,110250.0,0.1814534]
[1749584394682,4.831e-05,110260.0,110250.0,0.19809173]
[1749584394877,4.831e-05,110260.0,110250.0,0.1980917]
[1749584395101,4.831e-05,110260.0,110250.0,0.19809087]
[1749584395521,4.831e-05,110260.0,110250.0,0.1814534]
[1749584395722,4.831e-05,110260.0,110250.0,0.19809231]
[1749584395915,4.831e-05,110260.0,110250.0,0.1814534]
[1749584396113,4.831e-05,110260.0,110250.0,0.19809219]
[1749584396369,4.831e-05,110260.0,110250.0,0.1814534]
[1749584396505,4.831e-05,110260.0,110250.0,0.19809033]
[1749584396713,4.831e-05,110260.0,110250.0,0.19808973]
[1749584396911,4.831e-05,110260.0,110250.0,0.19808863]
[1749584397999,4.831e-05,110260.0,110250.0,0.1980902]
[1749584398425,4.831e-05,110260.0,110250.0,0.19809034]
[1749584398725,4.831e-05,110260.0,110250.0,0.1814534]
[1749584399772,4.831e-05,110260.0,110250.0,0.4732534]
[1749584401050,4.831e-05,110260.0,110250.0,0.4157534]
[1749584401268,0.04518916,110260.0,110250.0,0.2918]
[1749584401488,0.0306,110250.0,110230.0,0.0554]
[1749584401737,0.38514085,110240.0,110210.0,0.0323]
[1749584401965,0.55136192,110240.0,110220.0,0.0554]
[1749584402189,0.55136192,110240.0,110220.0,0.025]
[1749584402190,0.59113262,110240.0,110220.0,0.025]
[1749584402410,0.56392085,110240.0,110220.0,0.025]
[1749584402881,0.57299122,110240.0,110220.0,0.025]
[1749584403093,0.58206176,110240.0,110220.0,0.025]
[1749584403310,0.57299122,110240.0,110220.0,0.025]
[1749584403537,0.58206176,110240.0,110220.0,0.025]
[1749584403749,0.04764085,110230.0,110220.0,0.025]
[1749584405814,0.01454085,110220.0,110200.0,0.0578]
[1749584406058,0.34907613,110170.0,110160.0,0.002]
[1749584406282,0.71166853,110170.0,110160.0,0.027]
[1749584406518,0.73579198,110170.0,110160.0,0.002]
[1749584406751,0.6196679,110150.0,110140.0,0.029215]
[1749584407003,0.7323879,110150.0,110140.0,0.002]
[1749584407224,0.72409614,110150.0,110140.0,0.002]
[1749584407445,0.7274219,110150.0,110140.0,0.002]
[1749584407901,0.38177485,110150.0,110140.0,0.002]
[1749584408153,0.72998223,110150.0,110140.0,0.002]
[1749584408370,0.60200397,110150.0,110140.0,0.002]
[1749584408591,0.75956306,110150.0,110140.0,0.002]
[1749584408810,0.75048454,110150.0,110140.0,0.002]
[1749584409027,0.7615629,110150.0,110140.0,0.002]
[1749584409243,0.57999224,110150.0,110140.0,0.002]
[1749584409495,0.76156282,110150.0,110140.0,0.002]
[1749584409724,0.73432824,110150.0,110140.0,0.002]
[1749584410426,0.36362028,110130.0,110120.0,0.002]
[1749584410661,0.34,110130.0,110120.0,0.0933534]
[1749584410893,0.04065837,110150.0,110130.0,0.0327]
[1749584411118,0.01342437,110150.0,110140.0,0.1490534]
[1749584411349,0.01342437,110150.0,110140.0,0.16558715]
[1749584411350,0.35342437,110150.0,110140.0,0.16558715]
[1749584411572,0.35342437,110150.0,110140.0,0.16557726]
[1749584411808,0.01342437,110150.0,110140.0,0.16606237]
[1749584412046,0.01342437,110150.0,110140.0,0.14953851]
[1749584412278,0.01342437,110150.0,110140.0,0.00048511]
[1749584412279,0.04612111,110150.0,110140.0,0.00048511]
[1749584412573,0.51523758,110150.0,110140.0,0.00048511]
[1749584412842,0.5081593,110150.0,110140.0,0.00048511]
[1749584413112,0.48800308,110150.0,110140.0,0.01698712]
[1749584413559,0.49908111,110150.0,110140.0,0.01698712]
[1749584413566,0.59908111,110150.0,110140.0,0.00048511]
[1749584413794,0.59000317,110150.0,110140.0,0.00048511]
[1749584414251,0.59000317,110150.0,110140.0,0.01697953]
[1749584414252,0.59908136,110150.0,110140.0,0.01697953]
[1749584414507,0.58092522,110150.0,110140.0,0.01697953]
[1749584415184,0.58092522,110150.0,110140.0,0.00048511]
[1749584415421,0.58096522,110150.0,110140.0,0.03248511]
[1749584415669,0.58096522,110150.0,110140.0,0.04895466]
[1749584415938,0.46796522,110150.0,110140.0,0.04895463]
[1749584416206,0.45342437,110150.0,110140.0,0.14030803]
[1749584416439,0.45342437,110150.0,110140.0,0.14030704]
[1749584416892,0.45342437,110150.0,110140.0,0.12383851]
[1749584417106,0.45342437,110150.0,110140.0,0.14029287]
[1749584417319,0.45342437,110150.0,110140.0,0.12383851]
[1749584417560,0.45342437,110150.0,110140.0,0.41563851]
[1749584417780,0.55496,110150.0,110140.0,0.43209335]
[1749584418257,0.56620985,110150.0,110140.0,0.43209538]
[1749584418487,0.56620985,110150.0,110140.0,0.43209543]
[1749584418985,0.56620985,110150.0,110140.0,0.43209655]
[1749584419228,0.56420985,110150.0,110140.0,0.43209551]
[1749584419451,0.56520985,110150.0,110140.0,0.41563851]
[1749584419677,0.45224985,110150.0,110140.0,0.4320955]
[1749584419913,0.45124985,110150.0,110140.0,0.4320955]
[1749584420581,0.45124985,110150.0,110140.0,0.43208942]
[1749584420796,0.45124985,110150.0,110140.0,0.43208889]
[1749584421080,0.45124985,110150.0,110140.0,0.43208884]
[1749584422419,0.45124985,110150.0,110140.0,0.41563851]
[1749584423294,0.45124985,110150.0,110140.0,0.43209543]
[1749584423927,0.45124985,110150.0,110140.0,0.41563851]
[1749584424148,0.56368985,110150.0,110140.0,0.43211023]
[1749584424586,0.56368985,110150.0,110140.0,0.4321103]
[1749584424834,0.56368985,110150.0,110140.0,0.41563851]
[1749584425057,0.56368985,110150.0,110140.0,0.43211034]
[1749584425280,0.45124985,110150.0,110140.0,0.43211034]
[1749584425505,0.56348985,110150.0,110140.0,0.43211034]
[1749584426196,0.56348985,110150.0,110140.0,0.43213735]
[1749584426416,0.45124985,110150.0,110140.0,0.41563851]
[1749584426625,0.44,110150.0,110140.0,0.44883851]
[1749584427101,0.44,110150.0,110140.0,0.46533161]
[1749584427523,0.44,110150.0,110140.0,0.4715646]
[1749584427763,0.1,110150.0,110140.0,0.2047646]
[1749584427995,0.1,110150.0,110140.0,0.19856658]
[1749584428242,0.1,110150.0,110140.0,0.18203851]
[1749584428483,0.1,110150.0,110140.0,0.29419851]
[1749584428726,0.1,110150.0,110140.0,0.18203851]
[1749584428944,0.1,110150.0,110140.0,0.34189483]
[1749584429164,0.1,110150.0,110140.0,0.22977483]
[1749584429629,0.1,110150.0,110140.0,0.22977617]
[1749584429840,0.1,110150.0,110140.0,0.20477649]
[1749584430266,0.1,110150.0,110140.0,0.20477674]
[1749584430486,0.1,110150.0,110140.0,0.20477647]
[1749584430706,0.1,110150.0,110140.0,0.17977647]
[1749584431161,0.1,110150.0,110140.0,0.75831221]
[1749584431387,0.08911714,110150.0,110140.0,1.67783533]
[1749584431613,0.02671714,110150.0,110140.0,1.66353178]
[1749584431838,0.02671714,110150.0,110140.0,1.68920332]
[1749584432061,0.02671714,110150.0,110140.0,1.67261055]
[1749584432290,0.02671714,110150.0,110140.0,1.68634672]
[1749584432548,0.02671714,110150.0,110140.0,1.69942566]
[1749584432773,0.002,110170.0,110160.0,1.52559412]
[1749584432997,0.002,110170.0,110160.0,2.30752907]
[1749584433215,0.002,110170.0,110160.0,1.75231467]
[1749584433425,0.002,110170.0,110160.0,2.28471543]
[1749584433652,0.002,110170.0,110160.0,2.30128949]
[1749584433875,0.002,110170.0,110160.0,2.64750476]
[1749584434110,0.002,110190.0,110180.0,1.45488074]
[1749584434330,0.002,110190.0,110180.0,0.99031915]
[1749584434544,0.002,110190.0,110180.0,1.54552706]